[Event "20th Delhi GM Open 2023"]
[Site "New Delhi"]
[Date "2023.03.24"]
[Round "2.5"]
[White "Mchedlishvili, Mikheil"]
[Black "Patil Disha"]
[Result "1-0"]
[ECO "E01"]
[WhiteElo "2569"]
[BlackElo "1519"]
[Annotator "TA"]
[PlyCount "99"]
[EventDate "2023.03.23"]
[EventType "swiss"]
[EventCountry "IND"]
[SourceTitle "playchess.com"]
[Source "ChessBase"]
[SourceQuality "1"]
[TimeControl "5400+30"]

{[%evp 14,98,23,22,22,32,4,0,11,11,64,39,65,47,75,59,91,87,94,94,134,138,134,123,139,122,131,110,134,139,127,87,106,132,114,93,220,210,200,185,212,184,211,195,416,409,441,435,418,350,470,449,433,347,404,385,815,762,766,780,1177,880,864,840,1348,1657,29974,1558,29962,3874,29985,29986,29987,29988,29990,29991,29991,29992,29992,29993,29994,29995,29995,29996,29997,29998,29999]} 1. Nf3 d5 2. c4 c6 3. g3 Nf6 4. Bg2 e6 5. O-O Nbd7 6. d4 Bd6 {6...dxc4 is more fashionable.} 7. Nc3 O-O 8. Nd2 Be7 {[%cal Ob7b5] E01: Catalan: Early deviations.} 9. e4 dxe4 10. Ndxe4 Nxe4 {The position is equal.} 11. Nxe4 Nf6 ({Black should try} 11... f5 $11 12. Nc3 e5) 12. Nc3 Bd7 13. Bf4 {[#]} Rc8 $146 ({Predecessor:} 13... Be8 14. Qb3 b6 15. Rad1 Bd6 16. Be5 Rc8 17. Rfe1 Qc7 18. Bxf6 gxf6 19. d5 Be5 20. f4 Bxc3 21. Qxc3 Qe7 22. d6 Qd8 23. b4 c5 24. b5 Bd7 25. g4 {1-0 Shabalov,A (2569)-Betaneli,A (2298) Foxwoods op Ledyard 2009 (2)}) 14. Be5 Re8 15. Qe2 Bf8 16. Rfd1 g6 17. Rd3 Bg7 18. a4 a5 19. Rad1 {White has more active pieces.} Qe7 20. c5 Nd5 {[%cal Bf6d5,Bd5c3,Bc3d1][%mdl 32]} 21. Bxg7 Nxc3 {Black is weak on the dark squares} 22. Qe5 Nxd1 23. Bf6 {A strong pair of Bishops.} Qf8 24. Rxd1 Rb8 {This costs Black the game.} (24... Ra8 $16 {is a better defense.}) 25. Qc7 $1 $18 {[%csl LRa5,LRd7]} Red8 26. h4 ({Much less strong is} 26. Bxd8 $6 Qxd8 27. Qxd8+ Rxd8 $14) 26... Qe8 27. Qxa5 ({Don't take} 27. Bxd8 $6 Qxd8 28. Qe5 Rc8 $14) 27... Rdc8 28. Qb4 e5 $2 (28... h5 {might work better.} 29. b3 Kh7) 29. dxe5 Be6 30. Rd6 Qf8 31. a5 Qh6 32. Bg5 {Prevents Qc1+.} Qf8 33. Qf4 Ra8 34. b4 Rab8 $2 {[#]} (34... h5 35. Be4 Rc7) 35. h5 $1 {[%mdl 512]} Re8 (35... Rc7 36. hxg6) 36. Bf6 Rbd8 37. Bxd8 Rxd8 38. Qf6 Rxd6 39. exd6 Qg7 40. Qxg7+ Kxg7 {[#]} 41. Bxc6 $1 {[%mdl 576] Deflection, Promotion} bxc6 {[%mdl 4096] Endgame KB-KP} (41... Bc8 42. Bxb7) 42. a6 {White mates.} Bc8 43. a7 Bb7 44. d7 gxh5 45. d8=Q Kg6 46. Qb8 f5 47. Qxb7 f4 48. a8=Q f3 49. Qf8 {[%csl Gf8][%cal Rb7g7]} Kg5 50. Qbg7# {Weighted Error Value: White=0.14 (very precise) /Black=0.50} 1-0

[Event "20th Delhi GM Open 2023"]
[Site "New Delhi"]
[Date "2023.03.24"]
[Round "2.6"]
[White "Harshit Jaggi"]
[Black "Murzin, Volodar"]
[Result "0-1"]
[ECO "B94"]
[WhiteElo "1516"]
[BlackElo "2554"]
[Annotator "TA"]
[PlyCount "94"]
[EventDate "2023.03.23"]
[EventType "swiss"]
[EventCountry "IND"]
[SourceTitle "playchess.com"]
[Source "ChessBase"]
[SourceQuality "1"]
[TimeControl "5400+30"]

{[%evp 13,94,0,13,-10,56,0,0,0,0,0,0,-32,-30,-5,-26,-78,-54,-106,-103,-103,-95,-178,-150,-173,-186,-157,-146,-242,-214,-274,-256,-327,-337,-350,-346,-332,-326,-360,-341,-320,-276,-279,-222,-281,-272,-270,-276,-262,-151,-308,-293,-398,-390,-378,-375,-427,-402,-491,-498,-473,-416,-454,-374,-373,-369,-373,-371,-819,-526,-566,-552,-1335,-1355,-1254,-1270,-12841,-12842,-29989,-29990,-29990,-29991,-29994,-29995]} 1. e4 {[%emt 0:00:11]} c5 {[%emt 0:00:20]} 2. Nf3 {[%emt 0:00:20]} d6 {[%emt 0:00:19]} 3. d4 {[%emt 0:00:18]} cxd4 {[%emt 0:00:05]} 4. Nxd4 {[%emt 0:00:14]} Nf6 {[%emt 0:00:04]} 5. Nc3 {[%emt 0:00:17]} a6 {[%emt 0:00:02]} 6. Bg5 {[%emt 0:00:33]} Nbd7 {[%emt 0:00:08]} 7. f4 {[%emt 0:00:41]} Qc7 {[%emt 0:01:57]} 8. Qf3 {[%emt 0:00:58] B94: Sicilian Najdorf: 6 Bg5 Nbd7.} h6 {[%emt 0:00:08]} (8... b5 $11) 9. Bh4 {[%emt 0:06:05]} (9. Bxf6 $14 Nxf6 10. f5) 9... g5 $11 {[%emt 0:00:37][%mdl 64] Decoy} 10. fxg5 {[%emt 0:04:28] The position is equal.} hxg5 {[%emt 0:00:10]} ({Much less strong is} 10... Ne5 11. Qe3 hxg5 12. Bxg5 $14) 11. Bxg5 {[%emt 0:00:59]} Qc5 $1 {[%csl LRd4,LRg5]} 12. Nf5 {[%emt 0:06:03]} e6 $1 13. Bxf6 {[%emt 0:12:57]} Nxf6 14. Ng3 (14. Ne3 $11) 14... Nd7 $17 {[%mdl 1024] Black has strong compensation.} 15. O-O-O (15. Be2 $15) 15... Ne5 16. Qe2 b5 $36 {[%mdl 2048] [#] Black is in control.} 17. a3 $146 {[%emt 0:33:07]} (17. Kb1 $17) ({Predecessor:} 17. Kb1 b4 18. Na4 Qa5 19. b3 Bd7 20. Nb2 Ke7 21. Qd2 Kd8 22. Ne2 Rc8 23. Nc1 {1-0 Stankovic,B (2283)-Jurakic,L (2232) Pula op 34th 2022 (6)}) 17... b4 18. axb4 {[%emt 0:00:42]} Qxb4 19. Na2 {[%emt 0:02:56]} Qb6 {Black is more active.} 20. Qe1 {[%emt 0:04:16] [#]} (20. Kb1 $17) 20... Rb8 $1 $19 {[%emt 0:31:29]} 21. Qc3 {[%emt 0:02:48] [#]} Bg7 $1 22. Kb1 {[%emt 0:07:10]} Rh7 {[%emt 0:04:59]} 23. Qd4 Qxd4 {[%emt 0:02:49]} 24. Rxd4 {[%emt 0:05:31]} Nc6 {Dodges Rb4} 25. Rc4 {[%emt 0:05:39]} Rxb2+ {[%emt 0:01:09]} 26. Kc1 {[%emt 0:00:07] White is weak on the dark squares} Rxa2 {[%emt 0:04:36]} 27. Rxc6 {[%emt 0:00:09]} Ra1+ {[%emt 0:00:09]} 28. Kd2 {[%emt 0:00:30]} Kd7 29. Rb6 {[%emt 0:03:10]} Be5 {[%emt 0:00:23] And now ...Bf4+ would win.} 30. Rb3 Rg7 {[%emt 0:05:47]} (30... Rh6 $19 31. h4 Kd8) 31. Rf3 $2 {[%emt 0:03:05] Wards off Bf4+. Now White is beyond hope.} (31. Ne2 $17) 31... Ke7 {[%emt 0:00:49]} 32. Nh5 {[%emt 0:01:30]} Rg5 {[%emt 0:00:11]} 33. Nf4 Bb7 {[%emt 0:00:22]} 34. Ke3 Re1+ {[%mdl 64] Deflection} ({Wrong is} 34... Rg4 $2 35. g3 $19) 35. Kf2 {[%emt 0:02:28]} Rxe4 {[%emt 0:02:31]} 36. Ne2 {[%emt 0:00:32]} Reg4 {[%emt 0:00:50]} 37. Rb3 {[%emt 0:00:30]} Bxg2 {[%emt 0:01:01]} 38. Bxg2 {[%emt 0:00:28]} Rxg2+ {[%emt 0:00:02]} 39. Ke1 {[%emt 0:00:17]} Rxh2 {[%emt 0:00:20]} (39... Bxh2 $2 {too greedy.} 40. Rb7+ Kf6 41. Rf1+ Rf5 42. Rxf5+ exf5 43. Rb6 $19) 40. Rf1 {[%emt 0:00:47]} (40. Rxh2 Bxh2 41. Kd2) 40... f5 {[%emt 0:00:18] Hoping for ...Rgg2.} 41. Rb7+ {[%emt 0:00:37]} Kf6 {[%emt 0:00:05] ...Rgg2 would be deadly.} 42. Rb3 {[%emt 0:00:35]} Rgg2 {[%emt 0:00:10]} 43. Re3 {[%emt 0:00:21]} a5 {[%emt 0:00:11][%cal Ba6a5,Ba5a4,Ba4a3][%mdl 32] White must now prevent ...a4.} 44. c4 {[%emt 0:00:17]} a4 {[%emt 0:00:11]} 45. Nc3 Bxc3+ {[%emt 0:00:26] Black mates.} 46. Rxc3 {[%emt 0:00:49]} Rb2 {[%emt 0:00:07]} 47. Kd1 {[#]} a3 $1 {[%emt 0:00:06] Weighted Error Value: White=0.89/Black=0.18 (very precise)} 0-1

[Event "20th Delhi GM Open 2023"]
[Site "New Delhi"]
[Date "2023.03.24"]
[Round "2.7"]
[White "Savchenko, Boris"]
[Black "Shashveen A K"]
[Result "1-0"]
[ECO "C10"]
[WhiteElo "2552"]
[BlackElo "1517"]
[Annotator "TA"]
[PlyCount "57"]
[EventDate "2023.03.23"]
[EventType "swiss"]
[EventCountry "IND"]
[SourceTitle "playchess.com"]
[Source "ChessBase"]
[SourceQuality "1"]
[TimeControl "5400+30"]

{[%evp 17,56,28,31,22,37,33,57,50,50,47,46,42,137,124,282,273,273,268,289,279,279,282,342,340,606,618,29987,29988,29988,29989,29992,29989,29993,29994,29994,29995,29996,29997,29998,29999,29999]} 1. e4 {[%emt 0:00:08]} e6 {[%emt 0:00:09]} 2. d4 {[%emt 0:02:58]} d5 {[%emt 0:00:11]} 3. Nc3 {[%emt 0:02:03]} dxe4 {[%emt 0:00:12]} 4. Nxe4 {[%emt 0:00:08]} Nd7 {[%emt 0:00:05]} 5. Nf3 {[%emt 0:03:34]} Ngf6 {[%emt 0:00:25]} 6. Nxf6+ {[%emt 0:00:09]} Nxf6 {[%emt 0:00:11]} 7. Be3 {[%emt 0:00:05]} Be7 {[%emt 0:00:35]} 8. Bd3 {[%emt 0:04:30]} O-O {[%emt 0:02:32]} 9. Qe2 {[%emt 0:00:18]} b6 {[%emt 0:04:42]} 10. O-O-O {[%emt 0:01:16] C10: French with 3 Nc3: Unusual Black 3rd moves and 3...dxe4.} Bb7 {[%emt 0:04:15]} 11. Kb1 {[%emt 0:00:53]} Qc8 {[%emt 0:03:33]} 12. Ne5 {[%emt 0:05:46] White is slightly better.} c5 {[%emt 0:13:29] [#]} 13. Rhe1 $146 {[%emt 0:04:42]} ({Predecessor:} 13. c3 cxd4 14. Bxd4 Bc5 15. Bxc5 Qxc5 16. f4 Rad8 17. Rhe1 Rd6 18. g3 Rfd8 19. Bc2 Rxd1+ 20. Rxd1 Rxd1+ 21. Qxd1 Qd5 22. Qxd5 Nxd5 23. Kc1 f6 24. Nc4 {½-½ Riff,J (2510)-Velten,P (2464) FRA-ch Accession 2018 (6)}) 13... Rd8 {[%emt 0:05:39]} 14. dxc5 {[%emt 0:02:38]} Bxc5 {[%emt 0:01:04]} ({Black should play} 14... bxc5 $14 15. g3 a5) 15. Bg5 $1 $16 {[%emt 0:31:32] Black must now prevent Bxf6. White is more active.} Be7 {[%emt 0:00:37]} (15... Qc7 $16 {is a better defense.}) 16. Bxf6 $1 $18 {[%emt 0:00:15][%mdl 64] Remove Defender} Bxf6 {[%emt 0:00:12] [#]} 17. Bxh7+ $1 {[%emt 0:00:08][%mdl 576] Decoy} Kxh7 {[%emt 0:15:39]} (17... Kf8 18. Rxd8+) 18. Qh5+ {[%emt 0:00:10]} (18. Nxf7 $2 Rxd1+ 19. Rxd1 Bxg2 20. Qh5+ Kg8 21. Nh6+ gxh6 $19) 18... Kg8 {[%emt 0:00:18]} 19. Qxf7+ {[%emt 0:00:05]} Kh8 {[%emt 0:02:58] [#] And now ...Rxd1+ would win.} 20. Nd7 $1 {[%emt 0:00:18]} Qc7 $2 {[%emt 0:08:02] [#]} (20... Bxg2 $2 21. Qh5+ (21. Rxe6 Bf3 $11) 21... Kg8 22. Nxf6+ gxf6 23. Qg6+ Kh8 24. Qxf6+ Kh7 25. Qf7+ (25. Qxe6 $2 Rxd1+ {[%mdl 64] Deflection} 26. Rxd1 Qxe6 $19) 25... Kh8 26. Rxd8+ (26. Qxe6 $2 Rxd1+ {[%mdl 64] Deflection} 27. Rxd1 Qxe6 $19) 26... Qxd8 27. Qh5+ (27. Qxe6 Qg5 $11) 27... Kg7 28. Rxe6 $18) (20... Bg5 $2 21. Rxe6 Re8 22. Qh5+ Kg8 23. Rxe8+ Qxe8 24. Qxg5 $18) (20... Rxd7 21. Rxd7 Qc5) 21. Rd3 $1 {[%emt 0:01:31] Rh3+ would kill now.} ({And not} 21. Qxe6 Qf4 $15) ({Not} 21. Qh5+ Kg8 22. Rxe6 (22. Nxf6+ gxf6 23. Qg4+ Qg7 $15) 22... Bg5 $11) 21... Bg5 {[%emt 0:07:04]} 22. Rh3+ {[%emt 0:00:35] White mates.} Bh6 {[%emt 0:00:41] [#]} 23. Rxe6 $1 {[%emt 0:00:16]} Qc6 {[%emt 0:02:21]} (23... Qxc2+ 24. Kxc2) 24. Rhxh6+ {[%emt 0:00:09]} gxh6 {[%emt 0:00:09]} 25. Re7 {[%emt 0:00:22][%csl Ge7][%cal Rf7g7]} Qxc2+ {[%emt 0:01:30]} 26. Kxc2 {[%emt 0:00:08][%csl Ge7][%cal Rf7h7]} Be4+ {[%emt 0:00:38]} 27. Kd2 {[%emt 0:00:08][%csl Ge7][%cal Rf7g7]} Rg8 {[%emt 0:00:10]} 28. Qf6+ {[%emt 0:00:04]} Rg7 {[%emt 0:00:12]} 29. Qxg7# {[%emt 0:00:22] White took control after the opening. A superb game by Savchenko.   Weighted Error Value: White=0.00 (flawless) /Black=0.80} 1-0

[Event "20th Delhi GM Open 2023"]
[Site "New Delhi"]
[Date "2023.03.24"]
[Round "2.8"]
[White "Rangeet Majumdar"]
[Black "Lalit Babu M R"]
[Result "0-1"]
[ECO "C52"]
[WhiteElo "1512"]
[BlackElo "2544"]
[Annotator "TA"]
[PlyCount "66"]
[EventDate "2023.03.23"]
[EventType "swiss"]
[EventCountry "IND"]
[SourceTitle "playchess.com"]
[Source "ChessBase"]
[SourceQuality "1"]
[TimeControl "5400+30"]

{[%evp 14,66,6,-22,-24,-49,-7,-19,0,0,1,-6,0,2,7,-54,-45,-130,-129,-114,-50,-75,-82,-87,-91,-112,-108,-117,-123,-101,-141,-161,-158,-192,-196,-194,-182,-238,-221,-250,-234,-249,-256,-255,-254,-256,-265,-269,-253,-322,-317,-628,-458,-827,-813]} 1. e4 {[%emt 0:00:02]} e5 {[%emt 0:00:06]} 2. Nf3 {[%emt 0:00:07]} Nc6 {[%emt 0:00:05]} 3. Bc4 {[%emt 0:00:05]} Bc5 {[%emt 0:00:05]} 4. b4 {[%emt 0:00:05]} Bxb4 {[%emt 0:00:17]} 5. c3 {[%emt 0:00:07]} Ba5 {[%emt 0:00:08]} 6. d4 {[%emt 0:00:18]} d6 {[%emt 0:00:25]} 7. Qb3 {[%emt 0:00:23]} Qd7 {[%emt 0:00:28]} 8. O-O {[%emt 0:00:52] is currently scoring better than 8.dxe5.} Bb6 $1 {[%emt 0:00:43] C52: Evans Gambit Accepted: 5 c3 Ba5.} 9. Nbd2 {[%emt 0:00:28]} Na5 {[%emt 0:00:35]} (9... exd4 $5 10. cxd4 (10. Bb2 Na5 $17) 10... Nxd4 11. Nxd4 Bxd4 $15) 10. Qc2 {[%emt 0:00:13]} Ne7 {[%emt 0:00:07][%cal Bg8e7,Be7g6,Bg6f4][%mdl 32] The position is equal.} 11. dxe5 {[%emt 0:04:24]} Ng6 {[%emt 0:00:47]} 12. exd6 {[%emt 0:03:30]} Qxd6 {[%emt 0:00:22]} 13. e5 {[%emt 0:04:19]} Qc6 {[%emt 0:00:50]} 14. Bd3 {[%emt 0:01:54]} (14. Be2 $11) 14... Nf4 $15 {[%emt 0:00:07]} 15. Be4 {[%emt 0:03:05] [#]} (15. Re1 $15) 15... Qxc3 $3 $17 {[%emt 0:00:29][%mdl 576] Decoy} 16. Qb1 {[%emt 0:05:09]} Bg4 {[%emt 0:02:51] Black is much more active. The white rooks are badly placed.} (16... Be6 $17 {aiming for ...0-0-0.} 17. Nb3 Nxb3 18. axb3 Ne2+ 19. Kh1 Nxc1 20. Rxc1 Qxb3 21. Qxb3 (21. Bxh7 $2 {is the wrong capture.} O-O-O $19) (21. Bxb7 Qxb1 22. Raxb1 Rd8 $17) 21... Bxb3) 17. Bb2 {[%emt 0:02:32] [#]} Qb4 $146 {[%emt 0:00:15] Black keeps a firm grip on the game.} ({Predecessor:} 17... Qc5 18. Nb3 Nxb3 19. axb3 O-O-O 20. Ra4 Kb8 21. Bxb7 Kxb7 22. Rxf4 Be6 23. Bd4 Qb4 24. Bxb6 Qxf4 {0-1 Zhigalko,S (2572)-Oparin,G (2683) Titled Tuesday intern op 19th Jul Early blitz 2022 (7)}) 18. Qc2 {[%emt 0:04:12]} O-O-O {[%emt 0:02:23]} 19. a3 {[%emt 0:08:33]} Qe7 {[%emt 0:03:07]} 20. Bf5+ {[%emt 0:06:39]} Bxf5 {[%emt 0:00:26][%mdl 64] Remove Defender} 21. Qxf5+ {[%emt 0:03:48]} Ne6 {[%emt 0:00:05]} 22. Rac1 {[%emt 0:08:40]} Rd7 {[%emt 0:02:50]} 23. Nc4 {[%emt 0:02:50]} Nxc4 {[%emt 0:00:34]} 24. Rxc4 {[%emt 0:00:13]} g6 {[%emt 0:00:11]} 25. Qh3 {[%emt 0:02:16]} (25. Qf6 $142 Rhd8 26. Qxe7 Rxe7 27. g3) 25... h5 $19 {[%emt 0:00:48]} 26. Nd4 {[%emt 0:09:15]} Bxd4 {[%emt 0:11:21]} 27. Bxd4 {[%emt 0:01:06]} Kb8 {[%emt 0:00:03]} 28. Bb2 {[%emt 0:03:11]} Rhd8 {[%emt 0:00:04]} 29. Qb3 {[%emt 0:01:09]} Rd3 {[%emt 0:00:27]} 30. Qc2 {[%emt 0:02:48]} Qd7 {[%emt 0:00:22] White must now prevent ...Rd2.} 31. h4 {[%emt 0:01:27]} Qd5 {[%emt 0:00:12]} 32. Rc1 $2 {[%emt 0:01:13]} (32. Bc1) 32... Rd2 {[%emt 0:00:14]} 33. Qb3 {[%emt 0:01:48]} (33. Qc3 $142) 33... Nf4 {[%emt 0:00:18][%mdl 64] Pin. Beautiful play by Lalit Babu M R!   Weighted Error Value: White=0.51/Black=0.14 (very precise)} 0-1

[Event "20th Delhi GM Open 2023"]
[Site "New Delhi"]
[Date "2023.03.24"]
[Round "2.9"]
[White "Krasenkow, Michal"]
[Black "Kuldeep, Bharadwaj"]
[Result "1-0"]
[ECO "C77"]
[WhiteElo "2527"]
[BlackElo "1825"]
[Annotator "TA"]
[PlyCount "39"]
[EventDate "2023.03.23"]
[EventType "swiss"]
[EventCountry "IND"]
[SourceTitle "playchess.com"]
[Source "ChessBase"]
[SourceQuality "1"]
[TimeControl "5400+30"]

{[%evp 11,39,-19,69,46,91,82,162,175,164,170,173,153,256,252,299,271,254,250,292,272,275,285,270,272,315,292,851,860,1955,1898]} 1. e4 {[%emt 0:00:05]} e5 {[%emt 0:00:02]} 2. Nf3 {[%emt 0:00:06]} Nc6 {[%emt 0:00:06]} 3. Bb5 {[%emt 0:00:03]} a6 {[%emt 0:00:05]} 4. Ba4 {[%emt 0:00:05]} Nf6 {[%emt 0:00:05]} 5. d4 {[%emt 0:00:05]} exd4 {[%emt 0:05:04]} 6. O-O {[%emt 0:00:13]} Bc5 {[%emt 0:01:56]} (6... Be7 $11) 7. e5 $14 {[%emt 0:00:10] C77: Ruy Lopez: 3...a6 4 Ba4 Nf6, unusual lines.} Nd5 {[%emt 0:00:51]} 8. c3 {[%emt 0:00:22][%cal Bc2c3,Bc3d4][%mdl 32]} Nb6 {[%emt 0:04:46]} (8... d3 $16 {is a better defense.}) 9. cxd4 $18 {[%emt 0:00:17] White is clearly better.} (9. Nxd4 Nxa4 10. Qxa4 O-O $11) 9... Nxa4 {[%emt 0:00:21]} 10. Qxa4 {[%emt 0:00:22]} b5 {[%emt 0:08:53]} 11. Qd1 {[%emt 0:03:10]} Bb6 {[%emt 0:00:55]} (11... Be7 $16) 12. d5 $1 {[%emt 0:00:08] Black must now prevent Bg5.} ({Inferior is} 12. Bg5 Ne7 $11) 12... Ne7 {[%emt 0:00:08] [#]} 13. d6 $1 {[%emt 0:00:12]} cxd6 {[%emt 0:05:58]} 14. exd6 {[%emt 0:00:06] [#]} Ng6 $146 {[%emt 0:00:20]} ({Predecessor:} 14... Nc6 15. Re1+ Kf8 16. Bg5 f6 17. Bf4 Bb7 18. Nc3 Kf7 19. Qd5+ Kf8 20. Qd2 Kf7 {1-0 Uyar,L (1048)-Detjen,M (1162) GER-ch U12 Willingen 2021 (2)}) 15. Re1+ {[%emt 0:02:35]} (15. Bg5 f6 $14) ({Not} 15. Qd5 Rb8 $16) 15... Kf8 {[%emt 0:00:04] [#]} 16. Nc3 $1 {[%emt 0:12:03][%cal Bb1c3,Bc3d5,Bd5f6][%mdl 32]} ({Less strong is} 16. Qd5 Rb8 $16) 16... Bb7 {[%emt 0:00:04]} 17. Nd5 {[%emt 0:00:07] Prevents Qf6. aiming for Bg5.} Bc5 {[%emt 0:08:41]} 18. Bg5 {[%emt 0:00:12]} f6 $2 {[%emt 0:00:36] [#]} (18... Qb8 19. Nc7 f6) 19. Nxf6 $1 {[%emt 0:00:06][%mdl 512] A dynamic duo of knights.} Qc8 {[%emt 0:09:37] [#]} (19... Qxf6 20. Bxf6) 20. Rc1 $1 {[%emt 0:00:51] Black got outplayed after the opening.   Weighted Error Value: White=0.02 (flawless) /Black=0.52} 1-0

[Event "20th Delhi GM Open 2023"]
[Site "New Delhi"]
[Date "2023.03.24"]
[Round "3.1"]
[White "Jaiveer Mahendru"]
[Black "Sethuraman, S.P."]
[Result "0-1"]
[ECO "B68"]
[WhiteElo "1686"]
[BlackElo "2639"]
[Annotator "TA"]
[PlyCount "65"]
[EventDate "2023.03.23"]
[EventType "swiss"]
[EventCountry "IND"]
[SourceTitle "playchess.com"]
[Source "ChessBase"]
[SourceQuality "1"]
[TimeControl "5400+30"]

{[%evp 17,65,41,47,6,18,9,39,27,22,34,31,0,0,0,0,-31,-21,-81,0,-175,-176,-141,-84,-190,-211,-350,-333,-350,-177,-180,-184,-383,-369,-409,-408,-371,-355,-454,-461,-570,-570,-747,-745,-735,-738,-697,-678,-1399,-1438,-1976]} 1. e4 {[%emt 0:00:03]} c5 {[%emt 0:00:26]} 2. Nf3 {[%emt 0:00:07]} d6 {[%emt 0:00:07]} 3. d4 {[%emt 0:00:05]} cxd4 {[%emt 0:00:06]} 4. Nxd4 {[%emt 0:00:05]} Nf6 {[%emt 0:00:05]} 5. Nc3 {[%emt 0:00:03]} Nc6 {[%emt 0:00:08]} 6. Bg5 {[%emt 0:00:04]} e6 {[%emt 0:00:27]} 7. Qd2 {[%emt 0:00:10]} a6 {[%emt 0:00:09]} 8. O-O-O {[%emt 0:00:29]} Be7 {[%emt 0:00:06]} 9. f4 {[%emt 0:00:19]} Bd7 $1 {[%emt 0:00:07] 9...Bd7 scores better than 9...Nxd4.} 10. h4 {[%emt 0:00:51] B68: Sicilian: Richter-Rauzer: 7...a6 8 0-0-0 Bd7 9 f4 Be7 .} b5 {[%emt 0:02:27]} 11. Bxf6 {[%emt 0:04:05]} gxf6 {[%emt 0:07:42]} 12. f5 {[%emt 0:01:01] [#] White is slightly better.} Nxd4 $146 {[%emt 0:05:29]} ({Predecessor:} 12... Qb6 13. fxe6 fxe6 14. Nce2 O-O-O 15. Kb1 e5 16. Nxc6 Bxc6 17. Nc3 Qb7 18. Rh3 Rd7 {1-0 Khairallah,F-Buehler,B (2222) Geneve op 17th 2001 (5)}) 13. Qxd4 {[%emt 0:00:03]} Qc7 {[%emt 0:00:04]} 14. fxe6 {[%emt 0:04:24]} fxe6 {[%emt 0:00:18]} 15. Be2 {[%emt 0:01:59]} Rc8 {[%emt 0:03:10]} 16. Rhf1 {[%emt 0:13:41][%cal Oe4e5]} Qc5 {[%emt 0:00:46]} 17. g4 {[%emt 0:03:16]} (17. a3 $1 $11 {was the only way to keep the balance.}) 17... Rg8 (17... b4 $17 18. Qxc5 Rxc5) 18. Qd2 {[%emt 0:08:05] [#]} (18. Qd3 $11 {and White stays safe.}) 18... b4 $19 {[%emt 0:05:10]} 19. Nb1 {[%emt 0:00:36]} a5 ({Better is} 19... Ba4 {[%cal Rc5c2]} 20. b3 Bb5) 20. Bd3 {[%emt 0:19:39]} (20. Qd3 $17) 20... Rxg4 {[%emt 0:04:02]} 21. Qh6 {[%emt 0:01:32] White is weak on the dark squares} (21. Rf4 {was necessary.} Rg3 22. Qf2) 21... Rg3 {[%cal Og3d3,Bg4g3,Bg3e3,Be3e5][%mdl 32] [#] White must now prevent ...Rxd3!} 22. c3 {[%emt 0:07:55]} Qe3+ {[%emt 0:00:43]} (22... Qe5 $142 23. Qd2 f5 {[%mdl 64] Discovered Attack} 24. exf5 Bxh4 25. fxe6 Bxe6) 23. Qxe3 Rxe3 24. e5 $2 {[%emt 0:06:35]} (24. Kd2 Rh3 25. Rh1 Rxh1 26. Rxh1) 24... Rxe5 {[%emt 0:01:28]} (24... dxe5 $2 25. Bxh7 Rc7 26. Bg6+ Kf8 27. Rde1 $19) (24... fxe5 $2 {too greedy.} 25. Ba6 Rc7 26. c4 $19) 25. Bxh7 {[%emt 0:00:08]} f5 {[%emt 0:00:20]} 26. Rg1 {[%emt 0:00:30]} Bf6 {[%emt 0:03:19]} (26... Bxh4 $2 {is the wrong capture.} 27. Rxd6 Ke7 28. Rd2 $19) 27. Rxd6 {[%emt 0:04:17]} Ke7 {[%emt 0:00:04] Black is clearly winning.} (27... Bxh4 $2 {loses.} 28. Rg7 Rc7 29. Bg6+ Kd8 30. Bh5 $19) 28. Rgd1 {[%emt 0:01:37]} Bc6 {[%emt 0:00:21]} 29. h5 {[%emt 0:05:43]} Bg5+ {[%emt 0:01:12]} 30. Kc2 {[%emt 0:00:05]} Ba4+ {[%emt 0:02:38] This pair of bishops is nice.} 31. b3 {[%emt 0:00:08]} Re2+ {[%emt 0:00:07]} 32. Kd3 {[%emt 0:00:11]} Rxa2 {[%emt 0:00:21]} 33. Rb6 {[%emt 0:01:04] Weighted Error Value: White=0.90/Black=0.21 (precise)} 0-1